bitfinex/quotes_SOLUSD_20251103
["timestamp","ask_amount","ask_price","bid_price","bid_amount"]
[1762172910912,4.48035457,176.67,176.66,5.66059096]
[1762172911105,0.69,176.67,176.66,5.66059096]
[1762172912107,3.79035457,176.68,176.66,5.66059096]
[1762172912305,0.1,176.69,176.67,1.80795634]
[1762172912513,4.58035457,176.69,176.67,1.80795634]
[1762172912715,0.79,176.69,176.68,5.65995019]
[1762172913111,0.1,176.69,176.68,5.65995019]
[1762172913298,0.79,176.69,176.68,5.65995019]
[1762172913619,0.1,176.69,176.68,7.46790653]
[1762172918323,0.1,176.69,176.68,8.15790653]
[1762172922817,1e-08,176.69,176.68,8.15790653]
[1762172924912,1e-08,176.69,176.68,5.65995019]
[1762172925112,1e-08,176.69,176.67,5.65998122]
[1762172925113,0.66000001,176.69,176.67,5.65998122]
[1762172926230,0.66000001,176.69,176.66,5.66059096]
[1762172927624,2.46795635,176.69,176.66,5.66059096]
[1762172927827,6.25831092,176.69,176.66,5.66059096]
[1762172928127,0.66,176.68,176.66,5.66059096]
[1762172928528,0.66,176.68,176.64,5.66123188]
[1762172928738,2.46795634,176.68,176.64,5.66123188]
[1762172929028,0.66,176.67,176.64,5.66123188]
[1762172929330,0.66,176.67,176.66,1.80795634]
[1762172929638,0.66000001,176.69,176.66,1.80795634]
[1762172929839,0.66,176.68,176.66,1.80795634]
[1762172930135,0.66,176.68,176.64,19.81431159]
[1762172930324,0.66,176.68,176.66,1.80795634]
[1762172930529,0.66,176.68,176.64,14.15307971]
[1762172930734,0.66,176.68,176.64,15.96103605]
[1762172931325,0.66,176.68,176.65,1.80795634]
[1762172932220,0.66,176.68,176.64,15.96103605]
[1762172932614,0.66,176.68,176.66,5.66059096]
[1762172933531,0.66,176.68,176.66,7.4685473]
[1762172934333,0.66,176.68,176.66,8.48443525]
[1762172938844,0.66,176.68,176.66,5.66059096]
[1762172939031,0.66,176.68,176.66,8.48443525]
[1762172939339,0.66,176.68,176.66,5.66059096]
[1762172939726,0.66,176.68,176.66,8.48443525]
[1762172940047,0.66,176.68,176.66,5.66059096]
[1762172941021,0.14216157,176.67,176.62,5.66187294]
[1762172941226,2.82384429,176.64,176.6,5.66251415]
[1762172941425,2.82384429,176.64,176.57,0.71]
[1762172941426,2.82384429,176.62,176.58,5.66315551]
[1762172941647,2.82384429,176.61,176.56,5.663797]
[1762172941941,3.79035457,176.6,176.56,22.64713381]
[1762172942125,3.79035457,176.61,176.57,2.82384429]
[1762172942450,3.79035457,176.6,176.58,5.66315551]
[1762172942643,4.45035457,176.62,176.58,5.66315551]
[1762172942843,3.79035457,176.61,176.58,5.66315551]
[1762172943033,3.79035457,176.6,176.58,5.66315551]
[1762172943350,4.45035457,176.6,176.58,5.66315551]
[1762172943547,4.45035457,176.6,176.56,14.15949252]
[1762172943548,0.66,176.59,176.56,2.82384429]
[1762172944053,0.66,176.59,176.57,2.82384429]
[1762172944225,0.66,176.59,176.58,5.66315551]
[1762172944840,2.82384429,176.63,176.58,8.4869998]
[1762172944841,3.79035457,176.62,176.58,8.4869998]
[1762172945046,3.79035457,176.61,176.58,8.4869998]
[1762172945223,4.45035457,176.61,176.58,8.4869998]
[1762172945426,0.66,176.6,176.58,8.4869998]
[1762172947542,8.48543418,176.63,176.59,2.82384429]
[1762172947543,3.79035457,176.63,176.59,2.82384429]
[1762172947729,0.66,176.62,176.61,2.82384429]
[1762172948430,0.14216157,176.64,176.61,2.82384429]
[1762172948633,3.93251614,176.64,176.62,5.66187294]
[1762172948837,3.79035457,176.64,176.62,8.48571723]
[1762172949247,3.79035457,176.63,176.62,5.66187294]
[1762172949451,3.79035457,176.65,176.62,8.48571723]
[1762172949754,3.79035457,176.65,176.63,2.82384429]
[1762172949755,4.45035457,176.65,176.63,2.82384429]
[1762172949930,0.66,176.65,176.63,2.82384429]
[1762172950129,0.66,176.65,176.64,2.82384429]
[1762172950335,3.79035457,176.65,176.64,2.82384429]
[1762172950660,4.45035457,176.68,176.65,5.6609114]
[1762172950842,3.79035457,176.67,176.65,5.6609114]
[1762172951153,3.79035457,176.66,176.65,5.6609114]
[1762172951625,3.79035457,176.66,176.65,8.48475569]
[1762172952244,4.45035457,176.66,176.64,8.48507604]
[1762172952437,4.45035457,176.65,176.62,2.82384429]
[1762172952645,3.79035457,176.64,176.63,5.66155239]
[1762172952840,4.45035457,176.64,176.63,5.66155239]
[1762172953053,4.45035457,176.64,176.61,2.82384429]
[1762172953054,0.66,176.64,176.61,5.66188217]
[1762172953350,6.61419886,176.65,176.61,5.66188217]
[1762172953351,4.51035457,176.63,176.61,5.66188217]
[1762172953544,0.72,176.63,176.61,5.66188217]
[1762172953865,4.51035457,176.63,176.61,5.66188217]
[1762172954045,0.72,176.63,176.61,5.66188217]
[1762172954249,0.72,176.62,176.6,5.66240619]
[1762172954643,0.72,176.62,176.59,5.66283481]
[1762172955150,0.72,176.62,176.59,8.4866791]
[1762172957746,0.72,176.62,176.6,2.82384429]
[1762172959641,0.72,176.62,176.6,8.48613533]
[1762172960360,4.51035457,176.62,176.6,8.48613533]
[1762172960662,0.72,176.62,176.6,8.48613533]
[1762172960861,0.72,176.61,176.6,8.48613533]
[1762172962273,3.93251614,176.63,176.6,8.48613533]
[1762172962570,0.72,176.61,176.6,8.48613533]
[1762172964377,3.79035457,176.62,176.6,8.48613533]
[1762172964580,0.72,176.61,176.6,8.48613533]
[1762172965644,3.79035457,176.62,176.6,9.20613533]
[1762172965852,3.79035457,176.65,176.61,3.54384429]
[1762172966155,80.04417299,176.69,176.64,2.82384429]
[1762172966356,4.52325242,176.68,176.65,2.82384429]
[1762172966662,3.80325242,176.67,176.66,2.82384429]
[1762172966861,3.80325242,176.67,176.6,19.81857643]
[1762172967169,0.72,176.68,176.67,5.66027056]
[1762172967368,4.52374061,176.68,176.67,8.48411485]
[1762172968870,4.52374061,176.68,176.66,8.48437114]
[1762172969073,4.52374061,176.67,176.66,8.48437114]
[1762172969270,4.52374061,176.67,176.65,14.15173062]
[1762172969575,4.52374061,176.67,176.61,5.66219353]
[1762172969576,4.52374061,176.66,176.61,5.66219353]
[1762172969878,3.80374061,176.65,176.62,2.82384429]
[1762172970047,3.80374061,176.64,176.62,2.82384429]
[1762172970252,3.80374061,176.63,176.62,2.82384429]
[1762172970876,4.52374061,176.63,176.6,19.81808034]
[1762172971053,4.52374061,176.62,176.61,2.82384429]
[1762172971254,4.52374061,176.62,176.6,8.48635844]
[1762172971552,3.80374061,176.61,176.6,8.48635844]
[1762172972167,3.80374061,176.61,176.6,2.82384429]
[1762172972682,4.75217298,176.66,176.6,3.53384429]
[1762172972993,3.80902318,176.65,176.62,19.8165553]
[1762172973156,3.80902318,176.64,176.62,19.8165553]
[1762172973484,3.80902318,176.63,176.62,20.5265553]
[1762172973983,3.80902318,176.63,176.62,23.35039959]
[1762172981384,1e-08,176.69,176.65,20.592]
[1762172981567,1e-08,176.69,176.68,2.82384429]
[1762172981768,0.72000001,176.69,176.68,2.82384429]
[1762172981964,0.72000001,176.69,176.65,21.302]
[1762172981965,1e-08,176.69,176.65,21.302]
[1762172982177,1e-08,176.69,176.68,8.48379448]
[1762172983259,0.66000001,176.69,176.68,8.48379448]
[1762172983463,0.66000001,176.69,176.68,5.65995019]
[1762172984464,1e-08,176.69,176.68,5.65995019]
[1762172984672,0.66000001,176.69,176.68,5.65995019]
[1762172986989,0.66000001,176.69,176.66,19.81149535]
[1762172987187,0.66000001,176.69,176.66,22.63533964]
[1762172987380,0.66000001,176.69,176.66,19.81149535]
[1762172987967,0.66000001,176.69,176.67,2.82384429]
[1762172989177,0.66000001,176.69,176.67,8.4838213]
[1762172990072,0.66000001,176.69,176.67,2.82384429]
[1762172990485,0.66000001,176.69,176.67,8.48407015]
[1762172991382,5.41217299,176.69,176.67,8.48407015]
[1762172991785,0.66,176.68,176.67,8.48407015]
[1762172992100,0.66,176.68,176.67,2.82384429]
[1762172992988,0.66,176.68,176.67,8.48411485]
[1762172993373,4.46964423,176.68,176.67,8.48411485]
[1762172994403,4.46964423,176.68,176.67,1.80702655]
[1762172995516,3.80964423,176.68,176.67,0.72]
[1762172995699,3.80964423,176.68,176.67,1.80702655]
[1762172996375,3.80964423,176.68,176.67,7.46729711]
[1762172998183,3.80964423,176.68,176.67,8.18729711]
[1762172998779,3.80964423,176.68,176.67,7.46729711]
[1762173000201,3.80964423,176.68,176.67,8.18729711]
[1762173000424,1e-08,176.69,176.67,8.75332416]
[1762173000574,1e-08,176.69,176.68,2.52702655]
[1762173001296,0.1,176.74,176.71,20.592]
[1762173001698,0.76,176.74,176.72,1.80702655]
[1762173002187,0.76,176.74,176.73,5.65834889]
[1762173002594,0.76,176.74,176.73,7.46537544]
[1762173002788,0.76,176.74,176.73,5.65834889]
[1762173003304,0.76,176.74,176.7,20.592]
[1762173003606,0.76,176.74,176.7,5.65930956]
[1762173003787,0.76,176.74,176.7,19.80758347]
[1762173004104,0.76,176.74,176.73,1.80702655]
[1762173004292,0.76,176.74,176.73,7.46537544]
[1762173004611,0.76,176.74,176.73,5.65834889]
[1762173005400,0.76,176.74,176.72,1.80702655]
[1762173005401,0.76,176.74,176.72,7.46567928]
[1762173005610,0.76,176.74,176.72,5.65865273]
[1762173005781,0.76,176.74,176.71,1.80702655]
[1762173005782,0.14216157,176.73,176.71,1.80702655]
[1762173005984,1.94918812,176.73,176.67,1.80702655]
[1762173006188,0.66,176.72,176.67,1.80702655]
[1762173006381,0.14216157,176.71,176.67,7.46704646]
[1762173006689,1.94918812,176.71,176.67,5.66001991]
[1762173006889,0.66,176.7,176.67,5.66001991]
[1762173007283,0.66,176.7,176.67,7.46704646]
[1762173008602,0.66,176.7,176.67,5.66001991]
[1762173010200,0.66,176.7,176.66,20.592]
[1762173010410,1.80702655,176.68,176.63,19.81543338]
[1762173010585,4.75217298,176.68,176.63,21.62245993]
[1762173010787,0.66,176.67,176.64,1.80702655]
[1762173011207,5.41217298,176.67,176.65,1.80702655]
[1762173011587,4.75217298,176.68,176.66,1.80702655]
[1762173011786,4.75217298,176.68,176.67,1.80702655]
[1762173012313,4.46947962,176.68,176.67,1.80702655]
[1762173012809,9.2216526,176.68,176.65,21.62011491]
[1762173013003,4.46947962,176.67,176.65,21.62011491]
[1762173013206,3.80947962,176.66,176.65,19.81308836]
[1762173013383,4.50947962,176.66,176.65,21.62011491]
[1762173013589,3.80947962,176.66,176.65,21.62011491]
[1762173018389,4.50947962,176.66,176.63,5.66136976]
[1762173018594,4.50947962,176.65,176.63,5.66136976]
[1762173018896,3.80947962,176.64,176.63,5.66136976]
[1762173019088,4.50947962,176.64,176.63,5.66136976]
[1762173020114,4.50947962,176.64,176.63,7.46839631]
[1762173020314,4.50947962,176.64,176.63,5.66136976]
[1762173020693,4.50947962,176.64,176.61,1.80702655]
[1762173020994,4.50947962,176.63,176.61,1.80702655]
[1762173021195,3.80947962,176.62,176.61,7.46922008]
[1762173022410,4.50947962,176.62,176.61,7.46922008]
[1762173022613,4.50947962,176.62,176.61,5.66219353]
[1762173023216,4.50947962,176.62,176.61,7.46922008]
[1762173023397,3.80947962,176.62,176.61,7.46922008]
[1762173024603,4.50947962,176.62,176.61,7.46922008]
[1762173024800,4.50947962,176.62,176.56,14.15897306]
[1762173025017,3.80947962,176.61,176.59,1.80702655]
[1762173025219,3.80947962,176.6,176.56,41.13477006]
[1762173025514,3.80947962,176.59,176.56,19.82277006]
[1762173025714,3.80947962,176.58,176.57,1.80702655]
[1762173026620,3.80947962,176.58,176.57,7.47050279]
[1762173027636,4.51947962,176.58,176.52,5.66497035]
[1762173027800,4.51947962,176.57,176.53,20.592]
[1762173028125,4.51947962,176.56,176.53,22.39902655]
[1762173028415,3.80947962,176.55,176.54,1.80702655]
[1762173028619,4.51947962,176.55,176.54,5.66443865]
[1762173029324,4.51947962,176.55,176.52,5.66476089]
[1762173029505,1.80702655,176.57,176.52,5.66476089]
[1762173029506,4.51562436,176.54,176.52,5.66476089]
[1762173029711,0.71,176.53,176.52,5.66476089]
[1762173030393,0.71,176.53,176.51,5.66540139]
[1762173030599,0.71,176.53,176.51,7.47242794]
[1762173031621,0.71,176.53,176.51,5.66540139]
[1762173031922,0.71,176.53,176.51,7.47242794]
[1762173033323,3.80010487,176.57,176.51,19.82890487]
[1762173033621,4.51010487,176.56,176.53,1.80702655]
[1762173033929,0.71,176.56,176.54,1.80702655]
[1762173034218,0.71,176.55,176.54,1.80702655]
[1762173034620,3.80010487,176.57,176.54,7.4714652]
[1762173034819,0.71,176.56,176.54,5.66443865]
[1762173035020,0.71,176.56,176.54,7.4714652]
[1762173036221,0.71,176.56,176.53,1.80702655]
[1762173036422,0.71,176.56,176.52,1.80702655]
[1762173036606,0.71,176.56,176.51,21.63593142]
[1762173036921,0.71,176.56,176.52,1.80702655]
[1762173037333,9.93098926,176.55,176.51,5.66540139]
[1762173037509,11.73801581,176.55,176.51,5.66540139]
[1762173037820,0.14216157,176.53,176.5,5.66571238]
[1762173038197,0.71,176.52,176.48,5.66636446]
[1762173038602,0.71,176.52,176.48,40.42427561]
[1762173039932,0.71,176.52,176.48,42.23130216]
[1762173040317,0.71,176.52,176.48,26.25836446]
[1762173040514,0.71,176.52,176.48,28.06539101]
[1762173040825,0.71,176.52,176.48,5.66636446]
[1762173041027,0.71,176.52,176.48,7.47339101]
[1762173041216,0.71,176.52,176.48,21.63930216]
[1762173041926,0.71,176.52,176.48,19.83227561]
[1762173042433,2.51702655,176.52,176.47,5.66665862]
[1762173042610,0.14216157,176.5,176.47,5.66665862]
[1762173043127,0.71,176.49,176.47,5.66665862]
[1762173044330,0.71,176.49,176.46,0.2]
[1762173044545,2.51702655,176.49,176.46,0.2]
[1762173044841,0.71,176.49,176.46,5.86695218]
[1762173045021,0.72,176.48,176.46,5.86695218]
[1762173045844,0.72,176.48,176.46,5.86697794]
[1762173047032,1.80702655,176.51,176.47,1.80702655]
[1762173047033,4.51462776,176.51,176.47,1.80702655]
[1762173047218,3.79462776,176.51,176.5,1.80702655]
[1762173047409,0.72,176.51,176.5,1.80702655]
[1762173048114,0.72,176.51,176.46,20.70449465]
[1762173048431,0.72,176.51,176.47,0.67]
[1762173048829,3.79462776,176.52,176.47,0.67]
[1762173049018,3.79462776,176.52,176.46,20.03449465]
[1762173049019,0.72,176.53,176.46,20.03449465]
[1762173049215,3.79462776,176.52,176.46,20.03449465]
[1762173049422,3.79462776,176.51,176.46,20.70449465]
[1762173049732,3.79462776,176.52,176.46,20.70449465]
[1762173050027,3.79462776,176.51,176.46,20.70449465]
[1762173050228,3.79462776,176.52,176.49,1.80702655]
[1762173050417,3.79462776,176.51,176.49,1.80702655]
[1762173050620,3.79462776,176.5,176.49,1.80702655]
[1762173050815,0.72,176.51,176.49,1.80702655]
[1762173051326,4.51462776,176.51,176.49,1.80702655]
[1762173051527,0.72,176.51,176.49,1.80702655]
[1762173051920,4.51462776,176.51,176.49,1.80702655]
[1762173052122,3.79462776,176.5,176.46,20.70449465]
[1762173053526,4.51462776,176.5,176.46,20.70449465]
[1762173053723,0.72,176.5,176.46,20.70449465]
[1762173054040,0.72,176.51,176.46,20.70449465]
[1762173054235,3.79462776,176.5,176.49,1.80702655]
[1762173054660,4.51462776,176.5,176.46,20.70449465]
[1762173054838,0.72,176.5,176.49,1.80702655]
[1762173055140,3.7869324,176.5,176.49,1.80702655]
[1762173056420,4.5069324,176.5,176.49,2.82902251]
[1762173057737,4.5069324,176.5,176.49,8.49506591]
[1762173058035,3.7869324,176.5,176.49,5.6660434]
[1762173058215,3.7869324,176.5,176.49,8.49506591]
[1762173060340,3.7869324,176.5,176.48,2.82902251]
[1762173062543,4.51222222,176.51,176.49,5.6660434]
[1762173062738,3.79222222,176.5,176.49,5.6660434]
[1762173062944,4.51222222,176.5,176.47,5.66647414]
[1762173063244,2.82902251,176.51,176.47,5.66647414]
[1762173063245,4.51222222,176.49,176.47,5.66647414]
[1762173063441,3.79222222,176.48,176.47,5.66647414]
[1762173063644,4.51222222,176.48,176.46,5.86690078]
[1762173063823,3.79222222,176.47,176.46,5.86690078]
[1762173064853,6.35304793,176.53,176.46,5.86690078]
[1762173064854,5.47217298,176.56,176.49,20.592]
[1762173065148,0.72,176.55,176.53,2.82902251]
[1762173065324,0.72,176.55,176.52,2.82902251]
[1762173065524,0.72,176.55,176.51,2.82902251]
[1762173065747,0.72,176.55,176.53,2.82902251]
[1762173066423,0.72,176.55,176.54,5.66443865]
[1762173066622,0.72,176.55,176.53,2.82902251]
[1762173066818,0.72,176.55,176.52,16.9916638]
[1762173067221,0.72,176.55,176.53,5.66463054]
[1762173067422,0.72,176.55,176.52,5.66498466]
[1762173068448,0.72,176.55,176.52,8.49400717]
[1762173068761,0.72,176.55,176.52,5.66498466]
[1762173069119,0.72,176.55,176.52,8.49400717]
[1762173072021,0.72,176.55,176.52,5.66498466]
[1762173073145,0.72,176.55,176.52,8.49400717]
[1762173074722,0.72,176.55,176.52,5.66498466]
[1762173074919,4.75217298,176.54,176.52,5.66498466]
[1762173075319,4.75217298,176.54,176.52,8.49400717]
[1762173075320,0.66,176.54,176.52,8.49400717]
[1762173075527,0.66,176.53,176.52,8.49400717]
[1762173075729,0.66,176.53,176.48,16.99415042]
[1762173075921,7.72335706,176.52,176.47,20.592]
[1762173076142,7.72335706,176.52,176.48,5.66626996]
[1762173076143,4.75217298,176.51,176.48,5.66626996]
[1762173076339,5.41217298,176.51,176.48,5.66626996]
[1762173076942,4.47422184,176.5,176.48,8.49529247]
[1762173077127,3.81422184,176.49,176.48,8.49529247]
[1762173078031,4.47422184,176.49,176.46,3.02902251]
[1762173078243,4.47422184,176.48,176.46,0.2]
[1762173078449,3.81422184,176.47,176.46,8.6959411]
[1762173079045,3.81422184,176.47,176.46,5.86691859]
[1762173079241,4.47422184,176.47,176.46,5.86691859]
[1762173079931,4.47422184,176.47,176.46,0.2]
[1762173080629,9.36855639,176.47,176.46,0.2]
[1762173080838,12.1975789,176.47,176.46,0.2]
[1762173081050,9.36855639,176.47,176.46,0.2]
[1762173082537,8.56639482,176.47,176.46,5.86700668]
[1762173082746,3.81422184,176.47,176.46,8.69602919]
[1762173083358,4.47422184,176.47,176.46,3.02902251]
[1762173083542,4.47422184,176.47,176.46,8.69602919]
[1762173083930,3.81422184,176.47,176.46,8.69602919]
[1762173084738,3.81422184,176.47,176.46,5.86700668]
[1762173084937,3.81422184,176.47,176.46,8.69602919]
[1762173085458,4.47422184,176.47,176.46,8.69602919]
[1762173085833,3.81422184,176.47,176.46,8.69602919]
[1762173087042,4.47422184,176.47,176.46,8.69602919]
[1762173087444,4.47422184,176.47,176.46,5.86700668]
[1762173087939,4.47422184,176.47,176.46,0.2]
[1762173088366,4.47422184,176.47,176.46,5.86700668]
[1762173088866,4.47422184,176.47,176.46,0.2]
[1762173089164,4.61638341,176.47,176.46,0.2]
[1762173089372,9.36855639,176.47,176.46,0.2]
[1762173089574,19.15738408,176.47,176.46,0.2]
[1762173090954,9.93098926,176.46,176.45,0.2]
[1762173091153,22.02318003,176.46,176.45,0.2]
[1762173092458,27.69018671,176.46,176.45,0.2]
[1762173092840,22.92124029,176.46,176.45,0.2]
[1762173093974,43.51324029,176.46,176.45,0.2]
[1762173094273,13.60304953,176.46,176.45,8.69635036]
[1762173094443,13.60304953,176.46,176.45,0.2]
[1762173094444,3.81422184,176.46,176.45,0.2]
[1762173094759,3.81422184,176.46,176.45,8.69635036]
[1762173095148,3.81422184,176.46,176.45,0.2]
[1762173095149,4.49422184,176.46,176.45,0.2]
[1762173095558,4.63638341,176.46,176.45,0.2]
[1762173097168,4.63638341,176.46,176.45,3.02902251]
[1762173098067,4.63638341,176.46,176.45,0.2]
[1762173098572,14.4252111,176.46,176.45,0.2]
[1762173099280,35.0172111,176.46,176.45,0.2]
[1762173099474,37.84623361,176.46,176.45,0.2]
[1762173099770,43.51324029,176.46,176.45,0.2]
[1762173105056,112.76001177,176.45,176.44,0.2]
[1762173105258,117.28423361,176.45,176.44,0.2]
[1762173105459,122.95156146,176.45,176.44,0.2]
[1762173105777,129.30460939,176.45,176.44,0.2]
[1762173105975,9.78882769,176.41,176.4,0.2]
[1762173106173,34.3372111,176.41,176.4,0.2]
[1762173106469,35.0472111,176.41,176.4,0.2]
[1762173107274,37.87623361,176.41,176.4,0.2]
[1762173107471,43.5448465,176.41,176.4,0.2]
[1762173107781,37.87623361,176.41,176.4,0.2]
[1762173108677,43.5448465,176.41,176.4,0.2]
[1762173112072,37.87623361,176.41,176.4,0.2]
[1762173113479,43.5448465,176.41,176.4,0.2]
[1762173117388,48.3022746,176.41,176.4,0.2]
[1762173118267,48.3022746,176.41,176.4,6.53893424]
[1762173118268,3.81422184,176.41,176.4,6.53893424]
[1762173118460,3.81422184,176.41,176.4,0.2]
[1762173118882,3.81422184,176.41,176.4,5.86893424]
[1762173119773,3.95638341,176.41,176.4,0.2]
[1762173119958,5.76899625,176.41,176.4,0.2]
[1762173120159,16.26782394,176.41,176.4,0.2]
[1762173120580,21.93643683,176.41,176.4,0.2]
[1762173120761,97.28586493,176.41,176.4,0.2]
[1762173120969,0.14216157,176.4,176.35,5.87046405]
[1762173121170,0.14216157,176.37,176.35,0.2]
[1762173121381,3.95638341,176.36,176.35,0.2]
[1762173122278,3.81422184,176.37,176.35,8.35315437]
[1762173122475,3.81422184,176.36,176.35,8.35315437]
[1762173122689,28.01360608,176.41,176.35,8.35315437]
[1762173122690,0.14216157,176.39,176.35,8.35315437]
[1762173122880,3.81422184,176.38,176.35,8.35315437]
[1762173123182,3.81422184,176.38,176.37,1.81261284]
[1762173123387,0.14216157,176.4,176.38,5.66957704]
[1762173123575,3.81422184,176.39,176.38,8.15218988]
[1762173124585,3.81422184,176.39,176.38,5.66957704]
[1762173126171,3.81422184,176.39,176.38,6.33957704]
[1762173126389,3.81422184,176.39,176.38,5.66957704]
[1762173126774,3.81422184,176.39,176.38,6.33957704]
[1762173127790,30.38082769,176.44,176.38,6.33957704]
[1762173127791,9.78882769,176.47,176.38,50.67401774]
[1762173127986,0.14216157,176.46,176.41,1.81261284]
[1762173128163,0.71,176.46,176.41,1.81261284]
[1762173128369,0.71,176.46,176.41,0.67]
[1762173128567,0.14216157,176.42,176.38,5.66957704]
[1762173128782,0.14216157,176.42,176.38,6.33957704]
[1762173128979,0.14216157,176.42,176.39,0.67]
[1762173129188,0.14216157,176.42,176.38,7.48218988]
[1762173129579,0.85216157,176.42,176.38,5.66957704]
[1762173130869,0.14216157,176.4,176.36,5.66991615]
[1762173131070,0.14216157,176.4,176.36,8.14252899]
[1762173131305,0.14216157,176.4,176.37,0.66]
[1762173131486,0.80216157,176.4,176.36,8.14252899]
[1762173132297,0.80216157,176.4,176.35,7.68307988]
[1762173132485,0.14216157,176.38,176.35,5.87046704]
[1762173134785,0.86216157,176.38,176.35,5.87046704]
[1762173136683,0.86216157,176.38,176.35,0.2]
[1762173136684,2.67477441,176.38,176.35,0.2]
[1762173137181,0.14216157,176.36,176.35,0.2]
[1762173137582,0.86216157,176.36,176.35,0.2]
[1762173137777,2.67477441,176.36,176.35,0.2]
[1762173137995,17.22043377,176.36,176.35,0.2]
[1762173138193,12.4636021,176.36,176.32,0.2]
[1762173138505,1.95477441,176.33,176.32,0.2]
[1762173138805,0.14216157,176.33,176.32,0.2]
[1762173139702,4.6755319,176.33,176.32,0.2]
[1762173140306,6.48814474,176.33,176.32,0.2]
[1762173140495,4.6755319,176.33,176.32,0.2]
[1762173140704,3.9555319,176.33,176.32,0.2]
[1762173141288,4.6755319,176.33,176.32,0.2]
[1762173141888,3.9555319,176.33,176.32,0.2]
[1762173142408,4.6755319,176.33,176.32,0.2]
[1762173144593,3.9555319,176.33,176.32,0.2]
[1762173145206,4.6755319,176.33,176.32,0.2]
[1762173148622,9.44224481,176.33,176.32,0.2]
[1762173148821,4.6755319,176.33,176.32,0.2]
[1762173149017,3.81337033,176.33,176.32,8.39411919]
[1762173149230,4.76671291,176.4,176.32,23.67549791]
[1762173149402,4.76671291,176.42,176.33,7.25045136]
[1762173149599,26.07871291,176.42,176.33,7.25045136]
[1762173149812,21.312,176.42,176.33,7.25045136]
[1762173150124,0.14216157,176.41,176.33,7.25045136]
[1762173150504,0.14216157,176.41,176.34,19.84802086]
[1762173153531,0.72,176.4,176.37,1.81261284]
[1762173154099,1.95477441,176.39,176.34,5.6708631]
[1762173154301,0.14216157,176.39,176.34,5.6708631]
[1762173154495,0.14216157,176.37,176.34,7.48347594]
[1762173154923,0.86216157,176.37,176.34,7.48347594]
[1762173155822,0.86216157,176.37,176.34,5.6708631]
[1762173156403,0.86216157,176.37,176.33,5.67113505]
[1762173156608,2.67477441,176.37,176.33,5.67113505]
[1762173157014,0.14216157,176.35,176.33,5.67113505]
[1762173157325,0.14216157,176.35,176.32,0.2]
[1762173157632,0.72,176.34,176.32,0.2]
[1762173157832,0.86216157,176.35,176.32,5.87147187]
[1762173161031,4.76671291,176.37,176.34,1.81261284]
[1762173161247,4.76671291,176.37,176.36,1.81261284]
[1762173161416,8.57904401,176.37,176.36,1.81261284]
[1762173161937,3.8123311,176.37,176.36,1.81261284]
[1762173162914,3.8123311,176.37,176.36,7.48283284]
[1762173168743,9.23904401,176.37,176.36,5.67022]
[1762173169546,8.57904401,176.37,176.36,7.48283284]
[1762173169741,3.8123311,176.37,176.36,7.48283284]
[1762173170534,3.8123311,176.37,176.36,5.67022]
[1762173170735,3.8123311,176.37,176.36,7.48283284]
[1762173171245,3.8123311,176.37,176.36,5.67022]
[1762173171623,4.4723311,176.37,176.36,5.67022]
[1762173172346,4.4723311,176.37,176.32,28.55753176]
[1762173172347,0.14216157,176.36,176.32,16.1912096]
[1762173172523,3.8123311,176.35,176.32,16.1912096]
[1762173172724,3.8123311,176.34,176.32,16.1912096]
[1762173172929,5.5692063,176.36,176.32,21.86271595]
[1762173172930,3.8123311,176.33,176.32,21.86271595]
[1762173173940,3.8123311,176.33,176.32,20.05010311]
[1762173174125,3.8123311,176.33,176.32,21.86271595]
[1762173176056,3.8123311,176.33,176.32,20.05010311]
[1762173176352,3.8123311,176.33,176.32,21.86271595]
[1762173178451,3.8123311,176.33,176.32,22.88415853]
[1762173181445,194.59672898,176.43,176.35,20.592]
[1762173181446,4.76704473,176.4,176.35,20.592]
[1762173181646,4.76704473,176.41,176.39,2.83405542]
[1762173181834,0.66,176.41,176.4,2.83405542]
[1762173182034,0.66,176.41,176.4,8.50298966]
[1762173182447,4.76704473,176.42,176.4,8.50298966]
[1762173182642,5.42704473,176.42,176.4,8.50298966]
[1762173182854,0.66,176.41,176.39,2.83405542]
[1762173183043,0.66,176.41,176.38,2.83405542]
[1762173184032,4.76704473,176.42,176.39,2.83405542]
[1762173184247,4.76704473,176.42,176.4,2.83405542]
[1762173184438,5.42704473,176.42,176.4,2.83405542]
[1762173184961,27.60504793,176.46,176.41,2.83405542]
[1762173185132,4.76841086,176.44,176.43,2.83405542]